[Event "56th Biel Festival MTO 2023"]
[White "Albornoz Cabrera,Carlos Daniel"]
[Black "Sukandar,Irine Kharisma"]
[Site "Biel"]
[Round "3.7"]
[Annotator "TA"]
[Result "1/2-1/2"]
[Date "2023.07.19"]
[WhiteElo "2591"]
[BlackElo "2358"]
[PlyCount "334"]
[TimeControl "60"]

{[%evp 189,334,0,73,0,0,0,0,0,0,0,0,0,0,0,0,0,0,0,0,0,0,0,0,0,0,0,0,0,0,0,0,0,0,0,0,0,0,0,0,0,0,0,0,0,0,0,0,0,0,0,0,0,0,0,0,0,0,0,0,0,0,0,0,0,0,0,0,0,0,0,0,0,0,0,0,0,0,0,0,0,0,0,0,0,0,0,0,0,0,0,0,0,0,0,14,36,44,51,51,58,66,0,0,0,0,0,0,0,0,0,0,0,0,0,0,0,0,0,0,0,0,0,0,0,0,0,0,0,0,0,0,0,0,0,0,0,0,0,0,0,0,0,0,0,0,0,0]} 1. e4 {[%emt 0:0:0]} e5 {[%emt 0:0:0]} 2. Nf3 {[%emt 0:0:0]} Nc6 {[%emt 0:0:0]} 3. Bb5 {[%emt 0:0:0]} a6 {[%emt 0:0:0]} 4. Ba4 {[%emt 0:0:0]} Nf6 {[%emt 0:0:0]} 5. O-O {[%emt 0:0:0]} Be7 {[%emt 0:0:0]} 6. Re1 {[%emt 0:0:0]} b5 {[%emt 0:0:0]} 7. Bb3 {[%emt 0:0:0]} d6 {[%emt 0:0:0]} 8. c3 {[%emt 0:0:0]} O-O {[%emt 0:0:0]} 9. h3 {[%emt 0:0:0]} a5 {[%emt 0:0:0]} 10. d4 {[%emt 0:1:40]} Bd7 {[%emt 0:0:0]} 11. a3 {[%emt 0:3:45]} a4 {[%emt 0:0:0]} 12. Ba2 {[%emt 0:0:19]} h6 {[%emt 0:0:0]} 13. Nbd2 {[%emt 0:3:12]} Re8 {[%emt 0:4:8]} 14. b4 {[%emt 0:12:10]} axb3 {[%emt 0:14:29]} 15. Qxb3 {[%emt 0:0:6]} Rf8 {[%emt 0:0:9]} 16. Qc2 {[%emt 0:12:48]} Re8 {[%emt 0:12:39]} 17. Bb2 {[%emt 0:5:17]} Bf8 {[%emt 0:0:43]} 18. Re3 {[%emt 0:9:2]} Na5 {[%emt 0:8:13]} 19. dxe5 {[%emt 0:9:1]} dxe5 {[%emt 0:0:6]} 20. c4 {[%emt 0:0:10]} bxc4 {[%emt 0:0:25]} 21. Nxe5 {[%emt 0:2:50]} Be6 {[%emt 0:3:2]} 22. Ndxc4 {[%emt 0:1:40]} Nxc4 {[%emt 0:0:36]} 23. Bxc4 {[%emt 0:0:18]} Qe7 {[%emt 0:4:20]} 24. Bb5 {[%emt 0:6:37]} Nd7 {[%emt 0:3:44]} 25. Nxd7 {[%emt 0:5:18]} Bxd7 {[%emt 0:0:5]} 26. Bc4 {[%emt 0:1:25]} Be6 {[%emt 0:3:17]} 27. Bb5 {[%emt 0:6:3]} Bd7 {[%emt 0:5:27]} 28. Bxd7 {[%emt 0:2:16]} Qxd7 {[%emt 0:0:5]} 29. Rg3 {[%emt 0:1:12]} Re6 {[%emt 0:4:15]} 30. Rc1 {[%emt 0:2:43]} Rb8 {[%emt 0:7:37]} 31. Ba1 {[%emt 0:3:43]} Qe7 {[%emt 0:2:41]} 32. Qc3 {[%emt 0:2:46]} f6 {[%emt 0:0:15]} 33. Qc4 {[%emt 0:0:6]} Kh8 {[%emt 0:2:2]} 34. Re3 {[%emt 0:0:33]} Re8 {[%emt 0:4:5]} 35. Rce1 {[%emt 0:3:1]} Qc5 {[%emt 0:0:37]} 36. Qe2 {[%emt 0:0:16]} Bd6 {[%emt 0:0:24]} 37. Qg4 {[%emt 0:1:28]} Qb6 {[%emt 0:6:16]} 38. Qg6 {[%emt 0:1:1]} Bf4 {[%emt 0:2:47]} 39. R3e2 {[%emt 0:1:22]} Qa6 {[%emt 0:1:40]} 40. Bb2 {[%emt 0:3:33]} c5 {[%emt 0:13:35]} 41. Qg4 {[%emt 0:0:0]} Qd6 {[%emt 0:0:0]} 42. Bc3 {[%emt 0:0:0]} R6e7 {[%emt 0:4:46]} 43. g3 {[%emt 0:2:26]} Be5 {[%emt 0:0:48]} 44. Bxe5 {[%emt 0:4:48]} Rxe5 {[%emt 0:0:23]} 45. Re3 {[%emt 0:4:56]} c4 {[%emt 0:1:26]} 46. Qe2 {[%emt 0:4:24]} Qc6 {[%emt 0:2:0]} 47. Qc2 {[%emt 0:1:13]} Qe6 {[%emt 0:3:49]} 48. h4 {[%emt 0:1:44]} Rd8 {[%emt 0:1:31]} 49. Qc3 {[%emt 0:1:26]} Rb5 {[%emt 0:0:45]} 50. Rc1 {[%emt 0:2:41]} Rc8 {[%emt 0:1:30]} 51. Qd4 {[%emt 0:1:23]} Re5 {[%emt 0:3:48]} 52. Rb1 {[%emt 0:2:40]} Rec5 {[%emt 0:3:27]} 53. Qc3 {[%emt 0:0:55]} Re5 {[%emt 0:0:38]} 54. Qc2 {[%emt 0:1:52]} Qc6 {[%emt 0:1:8]} 55. Rc1 {[%emt 0:2:5]} Qe6 {[%emt 0:1:5]} 56. Rd1 {[%emt 0:0:20]} Rec5 {[%emt 0:4:40]} 57. Qc3 {[%emt 0:1:0]} Rb5 {[%emt 0:0:56]} 58. Rc1 {[%emt 0:2:26]} Rb3 {[%emt 0:1:52]} 59. Qd4 {[%emt 0:0:18]} Rxe3 {[%emt 0:5:10]} 60. Qxe3 {[%emt 0:0:2]} Rd8 {[%emt 0:0:29]} 61. Rc3 {[%emt 0:5:8]} Qc6 {[%emt 0:1:11]} 62. Kh2 {[%emt 0:0:0]} Re8 {[%emt 0:0:0]} 63. Qf3 {[%emt 0:0:0]} Rd8 {[%emt 0:0:0]} 64. Kg2 {[%emt 0:0:0]} Qc5 {[%emt 0:0:0]} 65. a4 {[%emt 0:0:0]} Qb4 {[%emt 0:0:0]} 66. a5 {[%emt 0:0:0]} Qb5 {[%emt 0:0:0]} 67. Qe3 {[%emt 0:0:8]} Rd3 {[%emt 0:0:43]} 68. Rxd3 {[%emt 0:1:3]} cxd3 {[%emt 0:0:2]} 69. Qd4 {[%emt 0:1:19]} Qxa5 {[%emt 0:0:40]} 70. Qxd3 {[%emt 0:0:1]} Qa8 {[%emt 0:1:10]} 71. Qd5 {[%emt 0:0:8]} Qb8 {[%emt 0:0:22]} 72. h5 {[%emt 0:0:37]} Qe8 {[%emt 0:0:26]} 73. Kh3 {[%emt 0:0:42]} Qc8+ {[%emt 0:0:34]} 74. Qf5 {[%emt 0:0:11]} Qc1 {[%emt 0:1:9]} 75. Kg2 {[%emt 0:1:5]} Qc7 {[%emt 0:0:51]} 76. Qd5 {[%emt 0:0:12]} Qc3 {[%emt 0:0:25]} 77. Qf5 {[%emt 0:2:7]} Qd4 {[%emt 0:0:33]} 78. Qc8+ {[%emt 0:0:10]} Kh7 {[%emt 0:0:2]} 79. Qc2 {[%emt 0:0:6]} Kh8 {[%emt 0:0:10]} 80. Kf3 {[%emt 0:0:24]} Qa1 {[%emt 0:0:16]} 81. Kg4 {[%emt 0:0:54]} Qa6 {[%emt 0:0:43]} 82. Qc5 {[%emt 0:1:48]} Qe6+ {[%emt 0:0:40]} 83. Kf4 {[%emt 0:0:13]} Qd7 {[%emt 0:1:9]} 84. Ke3 {[%emt 0:0:5]} Qd1 {[%emt 0:0:19]} 85. Qc8+ {[%emt 0:1:0]} Kh7 {[%emt 0:0:2]} 86. Qf5+ {[%emt 0:0:5]} Kh8 {[%emt 0:0:3]} 87. Qd5 {[%emt 0:0:5]} Qe1+ {[%emt 0:0:50]} 88. Kf3 {[%emt 0:0:2]} Qf1 {[%emt 0:0:33]} 89. Qd8+ {[%emt 0:0:42]} Kh7 {[%emt 0:0:1]} 90. Qd4 {[%emt 0:0:6]} Qb5 {[%emt 0:0:48]} 91. Qd5 {[%emt 0:1:3]} Qf1 {[%emt 0:0:17]} 92. Qf5+ {[%emt 0:1:44]} Kh8 {[%emt 0:0:1]} 93. Kg4 {[%emt 0:0:22]} Qe2+ {[%emt 0:0:25]} 94. f3 {[%emt 0:0:6]} Qe3 {[%emt 0:0:46]} 95. Qd5 {[%emt 0:0:33]} Qe2 {[%emt 0:0:56] [#]} (95... Qc1 $11 {keeps the balance.} )96. e5 {[%emt 0:0:46]} (96. Qb3 $1 $16 )fxe5 $11 {[%emt 0:1:1]} 97. Kf5 {[%emt 0:1:21]} Qh2 {[%emt 0:1:29]} 98. Kg4 {[%emt 0:0:54]} Qb2 {[%emt 0:0:27]} 99. Qa8+ {[%emt 0:0:16]} Kh7 {[%emt 0:0:2]} 100. Qe4+ {[%emt 0:0:5]} Kh8 {[%emt 0:0:5]} 101. Kf5 {[%emt 0:0:17]} Qa3 {[%emt 0:1:33]} 102. Qd5 {[%emt 0:0:49]} Qe3 {[%emt 0:1:26]} 103. Qa8+ {[%emt 0:0:25]} Kh7 {[%emt 0:0:1]} 104. Qe4 {[%emt 0:0:8]} Qc3 {[%emt 0:0:28]} 105. g4 {[%emt 0:0:58]} Qc7 {[%emt 0:1:38]} 106. Qxe5 {[%emt 0:0:21]} Qf7+ {[%emt 0:0:13]} 107. Ke4 {[%emt 0:0:1]} Qc4+ {[%emt 0:0:10]} 108. Qd4 {[%emt 0:0:9]} Qc6+ {[%emt 0:0:20]} 109. Qd5 {[%emt 0:0:6]} Qa4+ {[%emt 0:0:33]} 110. Kf5 {[%emt 0:0:12]} Qa6 {[%emt 0:0:35]} 111. Kf4 {[%emt 0:0:30]} Kh8 {[%emt 0:0:19]} 112. Kg3 {[%emt 0:0:10]} Qf1 {[%emt 0:0:40]} 113. Qd8+ {[%emt 0:0:57]} Kh7 {[%emt 0:0:2]} 114. Qd4 {[%emt 0:0:5]} Qe1+ {[%emt 0:0:27]} 115. Kf4 {[%emt 0:0:3]} (115. Kg2 $5 {[%cal Rd4e4]} Kg8 116. Qe4 Qd2+ 117. Kg3 $16 )Qc1+ {[%emt 0:0:19]} 116. Ke5 {[%emt 0:0:33]} Qc7+ {[%emt 0:0:35]} 117. Ke4 {[%emt 0:0:5]} Qe7+ {[%emt 0:0:17]} 118. Kd3 {[%emt 0:0:30]} Qa3+ {[%emt 0:0:15]} 119. Ke2 {[%emt 0:0:6]} Qa2+ {[%emt 0:0:31]} 120. Ke3 {[%emt 0:0:4]} Qg2 {[%emt 0:0:33]} 121. Kf4 {[%emt 0:0:22]} Qh2+ {[%emt 0:0:35]} 122. Kf5 {[%emt 0:0:4]} Qc7 {[%emt 0:0:28]} 123. Qe4 {[%emt 0:0:50]} Kh8 {[%emt 0:1:9]} 124. Qe8+ {[%emt 0:1:27]} Kh7 {[%emt 0:0:2]} 125. Qe6 {[%emt 0:0:37]} Qc5+ {[%emt 0:0:19]} 126. Kf4 {[%emt 0:0:20]} (126. Ke4 $5 {[%cal Re6f5]} Qb4+ 127. Kd3 Qa3+ 128. Ke4 $16 )Qc1+ {[%emt 0:0:20]} 127. Qe3 {[%emt 0:0:1]} Qc7+ {[%emt 0:0:9]} 128. Ke4 {[%emt 0:1:27]} Qe7+ {[%emt 0:0:11]} 129. Kd3 {[%emt 0:0:3]} Qa3+ {[%emt 0:0:13]} 130. Ke2 {[%emt 0:0:1]} Qb2+ {[%emt 0:0:16]} 131. Kf1 {[%emt 0:0:13]} Qh2 {[%emt 0:1:0]} 132. Qf2 {[%emt 0:0:28]} Qh1+ {[%emt 0:0:25]} 133. Ke2 {[%emt 0:0:1]} Kh8 {[%emt 0:0:48]} 134. Qd4 {[%emt 0:0:22]} Qg2+ {[%emt 0:0:43]} 135. Ke3 {[%emt 0:0:1]} Qg1+ {[%emt 0:0:25]} 136. Ke4 {[%emt 0:0:2]} Qb1+ {[%emt 0:0:27]} 137. Kf4 {[%emt 0:0:14]} Qc1+ {[%emt 0:0:33]} 138. Kg3 {[%emt 0:0:4]} Qe1+ {[%emt 0:0:20]} 139. Kg2 {[%emt 0:0:19]} Qe2+ {[%emt 0:0:16]} 140. Qf2 {[%emt 0:0:4]} Qd1 {[%emt 0:0:12]} 141. Kg3 {[%emt 0:0:13]} Qd3 {[%emt 0:0:37]} 142. Qc5 {[%emt 0:0:9]} Qf1 {[%emt 0:1:9]} 143. Qe3 {[%emt 0:1:14]} Qa1 {[%emt 0:1:8]} 144. f4 {[%emt 0:0:7]} Qa8 {[%emt 0:0:27]} 145. g5 {[%emt 0:1:8]} (145. Qe7 $14 )hxg5 $11 {[%emt 0:0:21]} 146. fxg5 {[%emt 0:0:1]} Qb8+ {[%emt 0:0:18]} 147. Qf4 {[%emt 0:0:5]} Qe8 {[%emt 0:0:27]} 148. Qf3 {[%emt 0:1:34]} Qe5+ {[%emt 0:0:26]} 149. Kg4 {[%emt 0:0:19]} Qe6+ {[%emt 0:0:18]} 150. Kf4 {[%emt 0:0:12]} Qf7+ {[%emt 0:0:33]} 151. Kg3 {[%emt 0:0:8]} Qc7+ {[%emt 0:0:17]} 152. Qf4 {[%emt 0:0:10]} Qc3+ {[%emt 0:0:14]} 153. Kg4 {[%emt 0:0:5]} Qc8+ {[%emt 0:0:23]} 154. Kh4 {[%emt 0:0:1]} Qe8 {[%emt 0:0:41]} 155. g6 {[%emt 0:0:11]} Qe7+ {[%emt 0:0:51]} 156. Kg4 {[%emt 0:0:15]} Qe6+ {[%emt 0:1:8]} 157. Kf3 {[%emt 0:0:12]} Qd5+ {[%emt 0:0:15]} 158. Kf2 {[%emt 0:0:9]} (158. Kg4 $5 {[%cal Rf4b8]} Qd7+ 159. Kg3 Qd3+ 160. Kh4 Qd8+ 161. Qg5 Qd4+ 162. Kg3 $11 )Qc5+ {[%emt 0:0:12]} 159. Qe3 {[%emt 0:0:5]} Qc2+ {[%emt 0:0:32]} 160. Kg3 {[%emt 0:0:22]} Qc7+ {[%emt 0:0:12]} 161. Kf3 {[%emt 0:0:7]} Qc6+ {[%emt 0:0:25]} 162. Qe4 {[%emt 0:0:5]} Qc3+ {[%emt 0:0:21]} 163. Kf4 {[%emt 0:0:53]} Qc7+ {[%emt 0:0:23]} 164. Qe5 {[%emt 0:0:14]} Qc1+ {[%emt 0:1:2]} 165. Ke4 {[%emt 0:0:9]} Qc4+ {[%emt 0:0:24]} 166. Qd4 {[%emt 0:0:2]} Qc6+ {[%emt 0:0:31]} 167. Qd5 {[%emt 0:0:9]} Qxg6+ {[%emt 0:1:9]} 1/2-1/2

[Event "56th Biel Festival MTO 2023"]
[White "Jinan Jomon"]
[Black "Nguyen,Ngoc Truong Son"]
[Site "Biel"]
[Round "3.8"]
[Annotator "RC"]
[Result "0-1"]
[Date "2023.07.19"]
[WhiteElo "2409"]
[BlackElo "2645"]
[PlyCount "102"]
[TimeControl "60"]

1. c4 {[%emt 0:0:0]} Nf6 {[%emt 0:0:0]} 2. Nf3 {[%emt 0:0:0]} c6 {[%emt 0:0:0]} 3. Nc3 {[%emt 0:0:0]} d5 {[%emt 0:0:0]} 4. e3 {[%emt 0:0:0]} a6 {[%emt 0:0:0]} 5. b3 {[%emt 0:0:0]} Bf5 {[%emt 0:0:0]} 6. Be2 {[%emt 0:3:52]} Nbd7 {[%emt 0:0:0]} 7. d4 {[%emt 0:8:59]} e6 {[%emt 0:0:0]} 8. O-O {[%emt 0:2:5]} Bd6 {[%emt 0:0:0]} 9. Bb2 {[%emt 0:24:4]} Ne4 {[%emt 0:2:48]} 10. Nxe4 {[%emt 0:7:52]} Bxe4 {[%emt 0:3:3]} 11. Bd3 {[%emt 0:3:35]} O-O {[%emt 0:2:48]} 12. Bxe4 {[%emt 0:6:12]} dxe4 {[%emt 0:1:1]} 13. Ne5 {[%emt 0:2:6]} f5 {[%emt 0:6:22]} 14. Nxd7 {[%emt 0:2:10]} Qxd7 {[%emt 0:0:5]} 15. f3 {[%emt 0:5:28]} exf3 {[%emt 0:18:33]} 16. Qxf3 {[%emt 0:0:5]} Rf7 {[%emt 0:0:20]} 17. e4 {[%emt 0:7:34]} fxe4 {[%emt 0:0:18]} 18. Qxe4 {[%emt 0:0:8]} Raf8 {[%emt 0:0:6]} 19. Qe2 {[%emt 0:9:8]} Qc7 {[%emt 0:2:53]} 20. Qxe6 {[%emt 0:5:57]} Bxh2+ {[%emt 0:1:37]} 21. Kh1 {[%emt 0:0:1]} Qd6 {[%emt 0:0:36]} 22. Qxd6 {[%emt 0:3:11]} Bxd6 {[%emt 0:0:5]} 23. Rxf7 {[%emt 0:0:15]} Rxf7 {[%emt 0:0:5]} 24. a4 {[%emt 0:6:38]} Rf5 {[%emt 0:5:51]} 25. Bc3 {[%emt 0:1:48]} Bg3 {[%emt 0:1:4]} 26. Rd1 {[%emt 0:0:46]} Kf7 {[%emt 0:1:52]} 27. Bd2 {[%emt 0:0:37]} g5 {[%emt 0:5:38]} 28. Be3 {[%emt 0:0:50]} g4 {[%emt 0:0:28]} 29. Kg1 {[%emt 0:0:43]} h5 {[%emt 0:2:43]} 30. Kh1 {[%emt 0:0:53]} Ke6 {[%emt 0:1:25]} 31. Bg1 {[%emt 0:0:15]} h4 {[%emt 0:0:41]} 32. Be3 {[%emt 0:0:32]} Kd6 {[%emt 0:4:19]} 33. Bg1 {[%emt 0:0:23]} Kd7 {[%emt 0:9:19]} 34. Be3 {[%emt 0:0:50]} h3 {[%emt 0:2:49]} 35. gxh3 {[%emt 0:0:29]} gxh3 {[%emt 0:0:5]} 36. Bg1 {[%emt 0:0:32]} Rf3 {[%emt 0:0:13]} 37. Rb1 {[%emt 0:0:29]} Rd3 {[%emt 0:2:2]} 38. b4 {[%emt 0:0:31]} Rc3 {[%emt 0:17:37]} 39. c5 {[%emt 0:0:29]} Ke6 {[%emt 0:0:46]} 40. b5 {[%emt 0:0:13]} Kd5 {[%emt 0:5:33]} 41. bxc6 {[%emt 0:3:43]} bxc6 {[%emt 0:0:0]} 42. a5 {[%emt 0:13:25]} Ra3 {[%emt 0:0:0]} 43. Rd1 {[%emt 0:2:39]} Bc7 {[%emt 0:0:0]} 44. Bh2 {[%emt 0:1:49]} Bxa5 {[%emt 0:0:0]} 45. Be5 {[%emt 0:0:24]} Bc3 {[%emt 0:0:0]} 46. Kh2 {[%emt 0:1:3]} a5 {[%emt 0:0:0]} 47. Bg3 {[%emt 0:0:32]} a4 {[%emt 0:0:0]} 48. Kxh3 {[%emt 0:0:14]} Rb3 {[%emt 0:0:0]} 49. Rf1 {[%emt 0:0:46]} a3 {[%emt 0:0:0]} 50. Rf5+ {[%emt 0:0:19]} Kxd4 {[%emt 0:0:0]} 51. Rf4+ {[%emt 0:0:31]} Kxc5 {[%emt 0:0:0]} 0-1

[Event "56th Biel Festival MTO 2023"]
[White "Huang,Qian"]
[Black "Yuffa,Daniil"]
[Site "Biel"]
[Round "3.9"]
[Annotator "RC"]
[Result "0-1"]
[Date "2023.07.19"]
[WhiteElo "2422"]
[BlackElo "2603"]
[PlyCount "66"]
[TimeControl "60"]

1. Nf3 {[%emt 0:0:0]} c5 {[%emt 0:0:0]} 2. c4 {[%emt 0:0:0]} Nc6 {[%emt 0:0:0]} 3. Nc3 {[%emt 0:0:0]} g6 {[%emt 0:0:0]} 4. g3 {[%emt 0:0:0]} Bg7 {[%emt 0:0:0]} 5. Bg2 {[%emt 0:0:0]} d6 {[%emt 0:0:0]} 6. O-O {[%emt 0:0:0]} Bf5 {[%emt 0:0:0]} 7. a3 {[%emt 0:1:9]} Qd7 {[%emt 0:0:0]} 8. d3 {[%emt 0:0:23]} Bh3 {[%emt 0:0:0]} 9. Bxh3 {[%emt 0:4:9]} Qxh3 {[%emt 0:0:0]} 10. Rb1 {[%emt 0:0:31]} Bxc3 {[%emt 0:20:56]} 11. bxc3 {[%emt 0:2:50]} b6 {[%emt 0:5:0]} 12. Ne1 {[%emt 0:23:0]} h5 {[%emt 0:15:40]} 13. Ng2 {[%emt 0:9:59]} h4 {[%emt 0:9:1]} 14. Nf4 {[%emt 0:10:14]} Qd7 {[%emt 0:2:44]} 15. f3 {[%emt 0:0:49]} hxg3 {[%emt 0:0:59]} 16. hxg3 {[%emt 0:0:6]} g5 {[%emt 0:2:32]} 17. Ng2 {[%emt 0:0:42]} g4 {[%emt 0:1:34]} 18. Kf2 {[%emt 0:11:36]} gxf3 {[%emt 0:1:22]} 19. exf3 {[%emt 0:0:4]} O-O-O {[%emt 0:0:34]} 20. Be3 {[%emt 0:7:19]} Nf6 {[%emt 0:5:13]} 21. Bg5 {[%emt 0:2:57]} Qf5 {[%emt 0:6:3]} 22. Bxf6 {[%emt 0:3:35]} Qxf6 {[%emt 0:0:14]} 23. Qe1 {[%emt 0:0:59]} Kc7 {[%emt 0:4:57]} 24. Rc1 {[%emt 0:1:50]} Rh2 {[%emt 0:8:0]} 25. Qe4 {[%emt 0:2:2]} Rg8 {[%emt 0:3:57]} 26. Rg1 {[%emt 0:8:26]} Qg7 {[%emt 0:2:39]} 27. g4 {[%emt 0:0:56]} f5 {[%emt 0:3:1]} 28. Qxf5 {[%emt 0:2:7]} Rf8 {[%emt 0:0:9]} 29. Qe4 {[%emt 0:0:6]} Ne5 {[%emt 0:0:32]} 30. Ke2 {[%emt 0:8:31]} Nxf3 {[%emt 0:0:40]} 31. Rcf1 {[%emt 0:0:53]} Nxg1+ {[%emt 0:0:30]} 32. Rxg1 {[%emt 0:0:30]} Qf6 {[%emt 0:1:33]} 33. Kd1 {[%emt 0:0:25]} e6 {[%emt 0:1:51]} 0-1

[Event "56th Biel Festival MTO 2023"]
[White "Shlyakhtenko,Robert"]
[Black "Erdos,Viktor"]
[Site "Biel"]
[Round "3.10"]
[Annotator "RC"]
[Result "1/2-1/2"]
[Date "2023.07.19"]
[WhiteElo "2401"]
[BlackElo "2571"]
[PlyCount "63"]
[TimeControl "60"]

1. d4 {[%emt 0:0:0]} Nf6 {[%emt 0:0:0]} 2. c4 {[%emt 0:0:0]} g6 {[%emt 0:0:0]} 3. Nc3 {[%emt 0:0:0]} d5 {[%emt 0:0:0]} 4. Nf3 {[%emt 0:0:0]} Bg7 {[%emt 0:0:0]} 5. h4 {[%emt 0:0:0]} O-O {[%emt 0:0:0]} 6. cxd5 {[%emt 0:0:0]} Nxd5 {[%emt 0:0:0]} 7. h5 {[%emt 0:0:0]} c5 {[%emt 0:0:0]} 8. hxg6 {[%emt 0:0:0]} hxg6 {[%emt 0:0:0]} 9. Bh6 {[%emt 0:0:0]} Bxh6 {[%emt 0:0:0]} 10. Rxh6 {[%emt 0:0:0]} Nxc3 {[%emt 0:0:0]} 11. bxc3 {[%emt 0:0:0]} cxd4 {[%emt 0:0:0]} 12. Qd2 {[%emt 0:0:0]} Kg7 {[%emt 0:0:0]} 13. cxd4 {[%emt 0:0:0]} Nc6 {[%emt 0:0:24]} 14. Rh4 {[%emt 0:2:37]} Qa5 {[%emt 0:3:33]} 15. e4 {[%emt 0:0:51]} Rd8 {[%emt 0:36:18]} 16. Qxa5 {[%emt 0:13:1]} Nxa5 {[%emt 0:0:2]} 17. Kd2 {[%emt 0:0:15]} f6 {[%emt 0:18:56]} 18. Bd3 {[%emt 0:17:37]} g5 {[%emt 0:26:20]} 19. Rh2 {[%emt 0:0:20]} Bg4 {[%emt 0:5:8]} 20. Rah1 {[%emt 0:1:34]} Rh8 {[%emt 0:0:4]} 21. Rxh8 {[%emt 0:20:6]} Rxh8 {[%emt 0:0:3]} 22. Rxh8 {[%emt 0:0:11]} Kxh8 {[%emt 0:0:4]} 23. d5 {[%emt 0:0:11]} e5 {[%emt 0:2:36]} 24. Ne1 {[%emt 0:10:4]} Kg7 {[%emt 0:0:57]} 25. Nc2 {[%emt 0:1:31]} Kf7 {[%emt 0:1:12]} 26. Kc3 {[%emt 0:0:43]} b6 {[%emt 0:3:58]} 27. Ba6 {[%emt 0:1:24]} Ke7 {[%emt 0:0:24]} 28. Ne3 {[%emt 0:9:3]} Bd7 {[%emt 0:0:8]} 29. Kb4 {[%emt 0:0:4]} Kd6 {[%emt 0:0:7]} 30. f3 {[%emt 0:2:39]} Kc7 {[%emt 0:0:33]} 31. Nf1 {[%emt 0:0:22]} g4 {[%emt 0:1:37]} 32. Ng3 {[%emt 0:9:41]} 1/2-1/2

[Event "56th Biel Festival MTO 2023"]
[White "Dotzer,Lukas"]
[Black "Rodrigue-Lemieux,Shawn"]
[Site "Biel"]
[Round "3.11"]
[Annotator "RC"]
[Result "1/2-1/2"]
[Date "2023.07.19"]
[WhiteElo "2369"]
[BlackElo "2495"]
[PlyCount "104"]
[TimeControl "60"]

1. e4 {[%emt 0:0:0]} e5 {[%emt 0:0:0]} 2. Nf3 {[%emt 0:0:0]} Nc6 {[%emt 0:0:0]} 3. Bb5 {[%emt 0:0:0]} a6 {[%emt 0:0:0]} 4. Ba4 {[%emt 0:0:0]} d6 {[%emt 0:0:0]} 5. c3 {[%emt 0:0:0]} Bd7 {[%emt 0:0:0]} 6. d4 {[%emt 0:0:0]} g6 {[%emt 0:0:0]} 7. O-O {[%emt 0:0:0]} Bg7 {[%emt 0:0:0]} 8. Re1 {[%emt 0:0:0]} Nf6 {[%emt 0:0:0]} 9. Nbd2 {[%emt 0:5:18]} O-O {[%emt 0:0:0]} 10. Bc2 {[%emt 0:11:25]} Nh5 {[%emt 0:12:8]} 11. dxe5 {[%emt 0:8:47]} dxe5 {[%emt 0:0:30]} 12. Nc4 {[%emt 0:2:3]} Qe8 {[%emt 0:6:49]} 13. Qe2 {[%emt 0:7:28]} Kh8 {[%emt 0:11:33]} 14. a4 {[%emt 0:4:9]} h6 {[%emt 0:9:20]} 15. b4 {[%emt 0:8:28]} b6 {[%emt 0:6:21]} 16. g3 {[%emt 0:11:23]} Be6 {[%emt 0:12:0]} 17. Nh4 {[%emt 0:8:51]} f5 {[%emt 0:8:9]} 18. exf5 {[%emt 0:2:2]} gxf5 {[%emt 0:0:35]} 19. g4 {[%emt 0:6:45]} Qf7 {[%emt 0:3:20]} 20. Ne3 {[%emt 0:8:0]} fxg4 {[%emt 0:7:42]} 21. Nef5 {[%emt 0:5:56]} e4 {[%emt 0:3:21]} 22. Nxg7 {[%emt 0:2:46]} Kxg7 {[%emt 0:2:0]} 23. Bxe4 {[%emt 0:2:12]} Bd7 {[%emt 0:5:29]} 24. Qd2 {[%emt 0:3:44]} Rae8 {[%emt 0:5:59]} 25. Qxh6+ {[%emt 0:1:31]} Kg8 {[%emt 0:0:30]} 26. Bg5 {[%emt 0:1:42]} Ne5 {[%emt 0:6:34]} 27. Ng6 {[%emt 0:0:46]} Nxg6 {[%emt 0:1:4]} 28. Qxg6+ {[%emt 0:0:20]} Qxg6 {[%emt 0:0:13]} 29. Bxg6 {[%emt 0:0:5]} Rxe1+ {[%emt 0:0:9]} 30. Rxe1 {[%emt 0:0:1]} Nf4 {[%emt 0:0:5]} 31. Bxf4 {[%emt 0:1:3]} Rxf4 {[%emt 0:0:2]} 32. Re7 {[%emt 0:0:58]} Bxa4 {[%emt 0:0:1]} 33. Rxc7 {[%emt 0:0:13]} Bb3 {[%emt 0:1:39]} 34. Rb7 {[%emt 0:0:49]} Rf6 {[%emt 0:1:19]} 35. Be4 {[%emt 0:0:39]} Re6 {[%emt 0:0:14]} 36. f3 {[%emt 0:0:30]} gxf3 {[%emt 0:0:5]} 37. Bxf3 {[%emt 0:0:21]} Bc4 {[%emt 0:1:0]} 38. Rc7 {[%emt 0:0:18]} Bb3 {[%emt 0:0:44]} 39. c4 {[%emt 0:0:26]} Rg6+ {[%emt 0:0:20]} 40. Kf2 {[%emt 0:0:36]} Kf8 {[%emt 0:0:43]} 41. h4 {[%emt 0:0:0]} a5 {[%emt 0:0:0]} 42. c5 {[%emt 0:5:7]} axb4 {[%emt 0:0:0]} 43. c6 {[%emt 0:2:3]} Ba4 {[%emt 0:0:0]} 44. Rc8+ {[%emt 0:2:9]} Ke7 {[%emt 0:0:0]} 45. c7 {[%emt 0:9:37]} Bd7 {[%emt 0:0:0]} 46. Rd8 {[%emt 0:5:1]} b3 {[%emt 0:0:0]} 47. Bb7 {[%emt 0:2:3]} Rf6+ {[%emt 0:0:0]} 48. Ke3 {[%emt 0:2:19]} Bh3 {[%emt 0:6:55]} 49. Rd2 {[%emt 0:2:58]} Rf8 {[%emt 0:4:4]} 50. Rb2 {[%emt 0:1:34]} Kd6 {[%emt 0:0:42]} 51. c8=Q {[%emt 0:1:6]} Bxc8 {[%emt 0:0:11]} 52. Bxc8 {[%emt 0:0:7]} Rxc8 {[%emt 0:0:6]} 1/2-1/2

[Event "56th Biel Festival MTO 2023"]
[White "Deuer,Marius"]
[Black "Bharath Subramaniyam H"]
[Site "Biel"]
[Round "3.12"]
[Annotator "RC"]
[Result "1-0"]
[Date "2023.07.19"]
[WhiteElo "2374"]
[BlackElo "2488"]
[PlyCount "97"]
[TimeControl "60"]

1. d4 {[%emt 0:0:0]} Nf6 {[%emt 0:0:0]} 2. c4 {[%emt 0:0:0]} e6 {[%emt 0:0:0]} 3. Nc3 {[%emt 0:0:0]} Bb4 {[%emt 0:0:0]} 4. e3 {[%emt 0:0:0]} b6 {[%emt 0:0:0]} 5. Nge2 {[%emt 0:0:0]} Ne4 {[%emt 0:0:0]} 6. Qc2 {[%emt 0:0:0]} Bb7 {[%emt 0:0:0]} 7. a3 {[%emt 0:0:0]} Bxc3+ {[%emt 0:0:0]} 8. Nxc3 {[%emt 0:0:0]} Nxc3 {[%emt 0:0:0]} 9. Qxc3 {[%emt 0:0:0]} d6 {[%emt 0:0:0]} 10. b4 {[%emt 0:0:0]} Nd7 {[%emt 0:0:0]} 11. h4 {[%emt 0:12:38]} a5 {[%emt 0:3:37]} 12. Bb2 {[%emt 0:5:50]} axb4 {[%emt 0:27:5]} 13. axb4 {[%emt 0:0:26]} Rxa1+ {[%emt 0:6:12]} 14. Bxa1 {[%emt 0:0:7]} f5 {[%emt 0:0:37]} 15. f3 {[%emt 0:26:38]} O-O {[%emt 0:0:54]} 16. Be2 {[%emt 0:0:39]} Nf6 {[%emt 0:8:4]} 17. O-O {[%emt 0:7:33]} Nh5 {[%emt 0:5:53]} 18. Qe1 {[%emt 0:2:14]} f4 {[%emt 0:7:43]} 19. exf4 {[%emt 0:2:52]} Nxf4 {[%emt 0:2:10]} 20. Bd1 {[%emt 0:1:1]} Qf6 {[%emt 0:12:46]} 21. g3 {[%emt 0:3:42]} Qg6 {[%emt 0:6:51]} 22. Kh2 {[%emt 0:5:46]} Ra8 {[%emt 0:2:2]} 23. Bb3 {[%emt 0:7:50]} Nh5 {[%emt 0:1:49]} 24. Bb2 {[%emt 0:11:51]} h6 {[%emt 0:1:55]} 25. g4 {[%emt 0:4:16]} Nf4 {[%emt 0:0:59]} 26. Kg3 {[%emt 0:0:23]} Rf8 {[%emt 0:1:43]} 27. Qd2 {[%emt 0:1:17]} Qf6 {[%emt 0:7:31]} 28. Bc2 {[%emt 0:3:27]} Bxf3 {[%emt 0:1:59]} 29. Bd1 {[%emt 0:2:46]} Ng6 {[%emt 0:4:24]} 30. g5 {[%emt 0:0:50]} hxg5 {[%emt 0:0:28]} 31. hxg5 {[%emt 0:0:8]} Qe7 {[%emt 0:0:13]} 32. Rxf3 {[%emt 0:1:17]} Rf5 {[%emt 0:0:26]} 33. Rxf5 {[%emt 0:1:32]} exf5 {[%emt 0:0:2]} 34. Bc2 {[%emt 0:0:31]} Qe6 {[%emt 0:1:20]} 35. d5 {[%emt 0:1:32]} Qd7 {[%emt 0:0:38]} 36. Qd3 {[%emt 0:0:39]} f4+ {[%emt 0:0:16]} 37. Kf2 {[%emt 0:0:23]} Qg4 {[%emt 0:0:10]} 38. Ke1 {[%emt 0:0:40]} Qg1+ {[%emt 0:0:55]} 39. Kd2 {[%emt 0:0:13]} Nf8 {[%emt 0:0:19]} 40. g6 {[%emt 0:0:50]} Qg5 {[%emt 0:0:55]} 41. Qf5 {[%emt 0:0:0]} Qg2+ {[%emt 0:0:0]} 42. Kc3 {[%emt 0:0:0]} Qg3+ {[%emt 0:0:0]} 43. Bd3 {[%emt 0:0:0]} Qe1+ {[%emt 0:0:0]} 44. Kb3 {[%emt 0:0:0]} Qe8 {[%emt 0:0:0]} 45. Qxf4 {[%emt 0:0:0]} Nxg6 {[%emt 0:0:0]} 46. Qe4 {[%emt 0:0:0]} Qxe4 {[%emt 0:0:0]} 47. Bxe4 {[%emt 0:0:0]} Ne7 {[%emt 0:0:0]} 48. Bc1 {[%emt 0:0:0]} Kf7 {[%emt 0:0:0]} 49. Bg5 {[%emt 0:0:0]} 1-0